bitfinex/quotes_ETHUSD_20241231
["timestamp","ask_amount","ask_price","bid_price","bid_amount"]
[1735637763102,2.94292,3398.0,3397.4,0.07368873]
[1735637763311,2.94292,3398.0,3397.4,0.4540136]
[1735637763834,3.0,3398.2,3397.4,0.4540136]
[1735637764040,3.0,3398.0,3397.4,0.4540136]
[1735637764242,3.38753769,3398.2,3397.5,0.7859]
[1735637764424,0.38753769,3398.2,3397.5,0.7859]
[1735637764735,0.38753769,3398.2,3397.0,3.316716]
[1735637764736,0.38753769,3398.2,3397.7,0.7859]
[1735637765115,2.94293,3398.0,3397.7,0.7859]
[1735637765311,0.38753769,3398.2,3397.7,0.7859]
[1735637765312,0.76802622,3397.9,3397.7,0.7859]
[1735637765513,0.76802622,3397.9,3397.8,0.0725609]
[1735637765906,0.76802622,3397.9,3397.7,0.7859]
[1735637765907,5.93064729,3398.2,3397.7,0.7859]
[1735637766241,5.93064729,3398.2,3397.8,0.0725609]
[1735637766547,5.93064729,3398.2,3397.7,0.7859]
[1735637767141,5.93064729,3398.2,3397.8,0.0725609]
[1735637767330,2.94284,3398.1,3397.8,0.0725609]
[1735637767506,2.94284,3398.1,3397.7,0.7859]
[1735637767839,2.94284,3398.1,3397.8,0.0725609]
[1735637768045,2.94284,3398.1,3397.7,0.7859]
[1735637768243,2.94284,3398.1,3397.8,0.0725609]
[1735637768546,2.94284,3398.1,3397.7,0.7859]
[1735637768997,2.94284,3398.1,3397.8,0.0725609]
[1735637769202,2.94284,3398.1,3397.7,0.7859]
[1735637769397,2.94284,3398.1,3397.8,0.0725609]
[1735637769602,5.93065729,3398.2,3397.7,0.7859]
[1735637769826,2.94275,3398.2,3397.7,0.7859]
[1735637770025,2.94259,3398.4,3397.8,0.0725609]
[1735637770241,2.94259,3398.4,3397.7,0.7859]
[1735637770438,2.94259,3398.4,3397.8,0.07250828]
[1735637770639,2.94259,3398.4,3397.7,0.7859]
[1735637770801,3.7872,3398.5,3397.8,0.07250828]
[1735637771007,2.94274,3398.2,3397.7,0.7859]
[1735637771238,2.94292,3398.0,3397.8,0.07241057]
[1735637771438,2.94292,3398.0,3397.7,0.7859]
[1735637771641,2.85498497,3398.3,3397.7,0.7859]
[1735637771846,2.94277,3398.2,3397.8,0.07241057]
[1735637772040,2.94277,3398.2,3397.7,0.7859]
[1735637772404,2.94277,3398.2,3397.8,0.07241057]
[1735637772712,2.94293,3398.0,3397.0,15.692976]
[1735637773047,2.94293,3398.0,3397.5,0.7859]
[1735637773542,2.94277,3398.2,3397.6,0.07241057]
[1735637774172,2.9429,3398.1,3397.6,0.07241057]
[1735637774322,2.94291,3398.0,3397.6,0.07241057]
[1735637774648,2.94299,3397.9,3397.6,0.07241057]
[1735637775806,2.94285,3398.1,3397.6,0.07241057]
[1735637777526,2.94297,3398.0,3397.6,0.07241057]
[1735637782163,2.94274,3398.2,3397.6,0.07241057]
[1735637782836,2.94283,3398.1,3397.6,0.07241057]
[1735637784223,3.7872,3398.5,3397.6,0.07241057]
[1735637784419,2.94291,3398.0,3397.6,0.07241057]
[1735637785276,3.29134115,3398.4,3397.6,0.07241057]
[1735637785277,2.85498497,3398.3,3397.6,0.07241057]
[1735637785478,2.94303,3397.9,3397.6,0.07241057]
[1735637786372,2.94289,3398.1,3397.6,0.07241057]
[1735637786588,2.94293,3398.0,3397.6,0.07241057]
[1735637787943,2.94293,3398.0,3397.5,0.7859]
[1735637788145,2.94293,3398.0,3397.7,0.07247067]
[1735637788451,2.94293,3398.0,3397.8,0.07247067]
[1735637788647,2.94293,3398.0,3397.5,0.7859]
[1735637788876,2.94293,3398.0,3397.6,0.07247067]
[1735637789602,2.94316,3397.7,3397.6,0.07247067]
[1735637789879,7.46789237,3397.7,3397.6,0.07247067]
[1735637790109,7.46789237,3397.7,3396.8,6.5]
[1735637790243,2.94372,3397.1,3396.9,0.06556428]
[1735637790447,8.79843497,3397.4,3396.5,1.23358246]
[1735637790758,2.94386,3396.9,3396.6,0.06556428]
[1735637791076,2.94386,3396.9,3396.5,0.63556211]
[1735637791277,0.783,3397.2,3396.6,0.06577483]
[1735637791604,2.94397,3396.8,3396.4,0.8045]
[1735637791739,2.94397,3396.8,3396.7,0.06577483]
[1735637791939,2.94397,3396.8,3395.9,0.8112]
[1735637791940,0.783,3396.7,3395.9,0.8112]
[1735637792140,2.94438,3396.3,3395.9,0.8112]
[1735637792368,2.94438,3396.3,3396.0,0.06577483]
[1735637792874,2.94455,3396.1,3396.0,0.06577483]
[1735637793076,0.38878949,3396.3,3395.7,0.8112]
[1735637793276,2.94464,3396.0,3395.8,0.06601551]
[1735637793484,2.94464,3396.0,3395.7,0.8112]
[1735637793782,2.94464,3396.0,3395.8,0.06601551]
[1735637793978,2.94455,3396.2,3395.8,0.06601551]
[1735637794179,2.94455,3396.2,3395.7,0.8112]
[1735637794546,2.94455,3396.2,3395.8,0.06601551]
[1735637794942,2.94455,3396.2,3395.7,0.8112]
[1735637795145,2.94459,3396.1,3395.7,0.8112]
[1735637795388,2.94459,3396.1,3395.8,0.06601551]
[1735637795687,2.94459,3396.1,3395.7,0.8112]
[1735637795983,2.94459,3396.1,3395.8,0.06601551]
[1735637796181,2.94459,3396.1,3395.7,0.8112]
[1735637796340,3.0,3396.4,3395.7,0.8112]
[1735637796544,0.35524288,3396.6,3395.7,0.8112]
[1735637796545,2.94447,3396.2,3395.8,0.06601551]
[1735637797876,2.94422,3396.5,3395.9,0.8112]
[1735637798045,3.72678,3397.0,3395.9,0.8112]
[1735637798245,2.94406,3396.7,3396.1,0.8112]
[1735637798646,3.0,3396.9,3396.1,0.8112]
[1735637798956,3.0,3396.9,3396.2,0.06736927]
[1735637799157,2.94387,3396.9,3396.3,0.8112]
[1735637799563,2.94387,3396.9,3396.4,0.06764761]
[1735637801586,3.33250949,3397.1,3396.4,0.06764761]
[1735637801891,3.33250949,3397.1,3396.5,0.8112]
[1735637801892,2.94378,3397.0,3396.5,0.8112]
[1735637802096,0.38878949,3397.1,3396.5,0.8112]
[1735637802392,2.9436,3397.2,3396.7,0.8112]
[1735637802973,2.9436,3397.2,3396.8,0.06731662]
[1735637803175,2.9436,3397.2,3396.7,0.8112]
[1735637803355,2.9436,3397.2,3396.9,0.06731662]
[1735637803555,2.94345,3397.4,3396.7,0.8112]
[1735637803782,2.94345,3397.4,3396.9,0.8112]
[1735637804364,2.94351,3397.3,3397.0,0.06731662]
[1735637804569,2.94351,3397.3,3396.9,0.8112]
[1735637804782,2.94351,3397.3,3397.1,0.06731662]
[1735637804982,2.94351,3397.3,3396.9,0.8112]
[1735637805197,3.74403237,3397.6,3396.9,0.8112]
[1735637805396,2.94343,3397.4,3397.0,0.06731662]
[1735637805690,2.94343,3397.4,3396.9,0.8112]
[1735637805891,2.94343,3397.4,3397.1,0.06731662]
[1735637806096,2.94343,3397.4,3396.9,0.8112]
[1735637806471,2.94343,3397.4,3397.0,0.06731662]
[1735637806659,3.74403237,3397.6,3397.0,0.06731662]
[1735637806861,2.94349,3397.4,3397.1,0.06731662]
[1735637807061,3.74403237,3397.6,3397.1,0.06731662]
[1735637807062,2.94352,3397.3,3397.1,0.06731662]
[1735637807267,2.94352,3397.3,3396.9,0.8112]
[1735637807800,2.94338,3397.5,3397.0,0.06731662]
[1735637808102,2.94343,3397.4,3396.9,0.8112]
[1735637808416,3.38878949,3397.6,3397.0,0.06731662]
[1735637808704,2.94368,3397.1,3397.0,0.06731662]
[1735637808928,9.94765446,3397.1,3397.0,0.06731662]
[1735637809134,2.94443,3396.3,3396.1,0.7708]
[1735637809266,2.94446,3396.2,3395.9,6.5]
[1735637809460,2.94446,3396.2,3395.9,0.7708]
[1735637809916,2.9446,3396.1,3395.9,0.7708]
[1735637810255,5.79939497,3396.3,3395.3,0.7708]
[1735637810536,2.9449,3395.7,3395.3,0.7708]
[1735637810745,2.94474,3395.9,3395.3,0.7708]
[1735637811722,2.94481,3395.8,3395.3,0.7708]
[1735637814707,3.0,3396.1,3395.3,0.7708]
[1735637814910,2.94477,3395.9,3395.3,0.7708]
[1735637815089,3.33329949,3396.2,3395.3,0.7708]
[1735637815090,2.94481,3395.8,3395.3,0.7708]
[1735637815295,2.94481,3395.8,3395.4,0.05982429]
[1735637815535,3.33329949,3396.2,3395.4,0.05982429]
[1735637815693,2.94468,3396.0,3395.4,0.05982429]
[1735637816149,6.33329949,3396.2,3395.4,0.05982429]
[1735637816349,2.94475,3395.9,3395.4,0.05982429]
[1735637817490,2.94486,3395.8,3395.4,0.05982429]
[1735637817695,2.94486,3395.8,3395.3,0.7708]
[1735637818131,2.94486,3395.8,3395.4,0.06187067]
[1735637818303,2.94507,3395.5,3395.4,0.06187067]
[1735637818725,2.94507,3395.5,3395.0,0.7708]
[1735637819036,2.94507,3395.5,3395.1,0.06187067]
[1735637820033,4.50423237,3396.2,3395.2,0.55]
[1735637820236,2.94467,3396.0,3395.3,0.7685]
[1735637820538,2.94467,3396.0,3395.4,0.42639]
[1735637821098,2.94467,3396.0,3395.5,0.06198357]
[1735637821297,2.85498497,3396.6,3395.6,0.7685]
[1735637821497,0.38878949,3396.6,3395.6,0.7685]
[1735637821735,2.94445,3396.3,3395.7,0.06178035]
[1735637822058,0.38878949,3396.2,3395.7,0.06178035]
[1735637822258,2.94416,3396.6,3395.8,0.7685]
[1735637822456,0.38878949,3396.7,3395.9,0.55]
[1735637822620,0.38878949,3396.7,3396.0,0.7685]
[1735637822983,0.38878949,3396.7,3396.0,3.71311]
[1735637823266,0.35524288,3396.9,3396.1,0.48799352]
[1735637823440,2.94395,3396.8,3396.1,0.06168252]
[1735637823632,2.9441,3396.7,3396.1,0.06168252]
[1735637823820,0.38878949,3396.8,3396.1,0.06168252]
[1735637824014,3.33276949,3396.8,3396.1,0.06168252]
[1735637824259,3.33276949,3396.8,3396.0,0.7685]
[1735637824454,3.0,3396.7,3396.2,0.06151698]
[1735637824657,3.0,3396.7,3396.1,0.426329]
[1735637824658,0.38878949,3396.7,3396.1,0.426329]
[1735637824828,5.94429,3396.4,3396.3,0.06151698]
[1735637825034,5.94438,3396.3,3396.2,0.06135145]
[1735637825234,2.94464,3396.0,3395.7,0.7685]
[1735637825854,3.0,3396.3,3395.7,0.7685]
[1735637826180,5.9445,3396.2,3395.7,0.7685]
[1735637826393,3.0,3396.3,3395.7,0.7685]
[1735637826522,3.0,3396.3,3395.7,1.139865]
[1735637828238,5.9444,3396.3,3395.7,1.139865]
[1735637828636,5.9444,3396.3,3395.7,0.7685]
[1735637830063,3.0,3396.4,3395.7,0.7685]
[1735637830767,3.33268949,3396.9,3395.8,0.7657]
[1735637831068,2.9439,3396.9,3396.1,0.7657]
[1735637832965,3.0,3397.0,3396.2,0.7657]
[1735637833261,3.0,3397.0,3396.3,0.371023]
[1735637833504,3.0,3397.0,3396.3,0.43229914]
[1735637833868,2.94372,3397.1,3396.4,0.7657]
[1735637834031,2.94379,3397.0,3396.4,0.7657]
[1735637834440,2.94379,3397.0,3396.5,0.06127614]
[1735637834649,2.94386,3397.0,3396.5,0.06127614]
[1735637834856,2.85498497,3397.0,3396.5,0.06127614]
[1735637835069,0.38878949,3396.9,3396.5,0.06127614]
[1735637835376,2.94405,3396.7,3396.5,0.06127614]
[1735637835536,3.33266949,3396.9,3396.5,0.06127614]
[1735637835738,3.0,3396.8,3396.5,0.06127614]
[1735637837070,2.94394,3396.8,3396.5,0.06127614]
[1735637838553,3.38878949,3396.9,3396.5,0.06127614]
[1735637838752,6.33270949,3396.9,3396.5,0.06127614]
[1735637840462,6.33270949,3396.9,3396.4,0.7657]
[1735637840660,6.33270949,3396.9,3396.6,0.06095264]
[1735637840861,6.33270949,3396.9,3396.4,0.7657]
[1735637841064,6.33270949,3396.9,3396.7,0.06095264]
[1735637841383,6.33270949,3396.9,3396.4,0.7657]
[1735637841684,0.38878949,3396.9,3396.8,0.06095264]
[1735637841982,0.38878949,3396.9,3396.4,0.7657]
[1735637842184,2.94388,3396.9,3396.4,1.136723]
[1735637842489,2.94388,3396.9,3396.4,0.7657]
[1735637842791,2.94388,3396.9,3396.5,0.06058395]
[1735637843415,2.94396,3396.8,3396.5,0.06058395]
[1735637843750,3.0,3397.2,3396.5,0.06058395]
[1735637844069,2.94412,3396.6,3396.5,0.06058395]
[1735637844274,2.94412,3396.6,3396.3,0.8093]
[1735637844597,2.94412,3396.6,3396.5,0.06057643]
[1735637844766,2.94412,3396.6,3396.3,0.8093]
[1735637844973,2.94425,3396.5,3396.3,0.8093]
[1735637845172,2.94425,3396.5,3396.4,0.06057643]
[1735637845467,2.94447,3396.2,3396.0,0.8093]
[1735637846415,3.38878949,3396.5,3396.0,0.8093]
[1735637846563,2.94435,3396.4,3396.0,0.8093]
[1735637847098,0.38878949,3396.5,3396.0,0.8093]
[1735637847320,2.94429,3396.4,3396.0,0.8093]
[1735637847518,2.94444,3396.3,3396.0,0.8093]
[1735637848137,2.94446,3396.2,3396.0,0.8093]
[1735637848474,2.94446,3396.2,3396.1,0.06057643]
[1735637848674,2.94435,3396.4,3396.0,0.8093]
[1735637848914,2.94438,3396.3,3396.1,0.06057643]
[1735637849618,2.94425,3396.5,3396.1,0.06057643]
[1735637849990,3.69634,3396.9,3396.1,0.06057643]
[1735637849991,0.7524,3396.9,3396.1,0.06057643]
[1735637850179,2.9439,3396.9,3396.2,0.7628]
[1735637850372,2.9439,3396.9,3396.3,0.37679964]
[1735637850591,2.9439,3396.9,3396.4,0.06057643]
[1735637851090,0.35524288,3397.1,3396.4,0.06057643]
[1735637851284,3.0,3397.0,3396.5,0.7628]
[1735637851490,3.38878949,3397.0,3396.5,0.7628]
[1735637851684,2.94398,3396.8,3396.5,0.7628]
[1735637851890,0.38878949,3396.9,3396.5,0.7628]
[1735637852291,0.38878949,3396.9,3396.6,0.06062909]
[1735637852491,0.38878949,3396.9,3396.5,0.7628]
[1735637852801,0.38878949,3396.9,3396.6,0.06062909]
[1735637853004,3.33266949,3396.9,3396.5,0.7628]
[1735637853210,3.33266949,3396.9,3396.7,0.06062909]
[1735637853702,2.94404,3396.7,3396.5,0.7628]
[1735637854025,3.33270949,3396.9,3396.6,0.06062909]
[1735637854199,3.33270949,3396.9,3396.5,0.7628]
[1735637854399,3.33270949,3396.9,3396.7,0.06062909]
[1735637854696,3.33270949,3396.9,3396.5,0.7628]
[1735637855097,3.33270949,3396.9,3396.6,0.06062909]
[1735637855582,3.33270949,3396.9,3396.5,0.7628]
[1735637855782,3.33270949,3396.9,3396.6,0.06062909]
[1735637855983,3.33270949,3396.9,3396.5,0.7628]
[1735637856793,2.94392,3396.9,3396.6,0.0605238]
[1735637857107,2.94392,3396.9,3396.5,0.7628]
[1735637857283,2.94392,3396.9,3396.7,0.0605238]
[1735637857484,2.94392,3396.9,3396.5,0.7628]
[1735637857720,2.94371,3397.1,3396.8,0.0605238]
[1735637857926,2.94371,3397.1,3396.5,0.7628]
[1735637858225,3.33236949,3397.3,3396.6,0.06044857]
[1735637858721,2.9436,3397.2,3396.6,0.06044857]
[1735637860547,2.94344,3397.4,3396.7,0.7935]
[1735637860942,2.94329,3397.6,3396.9,0.7935]
[1735637861244,3.38878949,3397.7,3396.9,0.7935]
[1735637861452,0.38878949,3397.5,3396.9,0.7935]
[1735637861942,2.94351,3397.3,3397.0,0.06039592]
[1735637862330,2.94351,3397.3,3396.9,0.7935]
[1735637862556,2.94351,3397.3,3397.1,0.06039592]
[1735637862866,2.94351,3397.3,3397.2,0.06039592]
[1735637863230,2.94351,3397.3,3396.9,0.7935]
[1735637863810,2.94351,3397.3,3397.0,0.06039592]
[1735637864011,2.94351,3397.3,3396.9,0.7935]
[1735637864215,2.94351,3397.3,3397.1,0.06039592]
[1735637864387,2.94351,3397.3,3396.9,0.7935]
[1735637864729,2.94351,3397.3,3397.0,0.06039592]
[1735637865033,2.94351,3397.3,3396.9,0.7935]
[1735637865231,2.94351,3397.3,3397.1,0.06039592]
[1735637865535,2.94351,3397.3,3396.9,0.7935]
[1735637866053,3.33229949,3397.3,3397.0,0.06039592]
[1735637866316,2.943,3397.9,3397.1,0.7945]
[1735637866608,3.08982664,3398.0,3397.3,0.7945]
[1735637867010,3.08982664,3398.0,3397.5,2.94327]
[1735637867195,3.08982664,3398.0,3397.6,3.73767]
[1735637867404,3.08982664,3398.0,3397.7,0.7945]
[1735637867569,3.08982664,3398.0,3397.7,0.85385055]
[1735637867773,3.08982664,3398.0,3397.8,0.37970206]
[1735637868000,2.94243,3398.6,3397.9,0.05928288]
[1735637868199,3.60788497,3398.8,3397.9,0.05928288]
[1735637868372,2.94233,3398.7,3397.9,0.05928288]
[1735637869006,5.94239,3398.6,3397.9,0.05928288]
[1735637869569,2.85498497,3398.8,3398.0,0.7945]
[1735637869810,5.79719497,3398.8,3398.1,0.05887695]
[1735637870495,0.7529,3398.9,3398.1,0.05887695]
[1735637870496,3.7529,3398.9,3398.1,0.05887695]
[1735637870701,3.6951,3398.9,3398.1,0.05887695]
[1735637872700,2.94224,3398.8,3398.1,0.05887695]
[1735637872908,2.94224,3398.8,3398.1,0.2160063]
[1735637876146,2.94231,3398.7,3398.1,0.2160063]
[1735637876340,2.94231,3398.7,3398.1,0.05887695]
[1735637876907,2.94255,3398.5,3398.1,0.05887695]
[1735637877102,0.7529,3398.4,3398.1,0.05887695]
[1735637877304,2.85498497,3398.2,3397.6,6.5]
[1735637877550,5.79807497,3397.8,3397.4,0.7945]
[1735637877760,2.94309,3397.8,3397.4,0.7945]
[1735637877910,5.85498497,3398.1,3397.4,0.7945]
[1735637878244,2.943,3397.9,3397.4,0.7945]
[1735637878450,2.943,3397.9,3397.5,0.05612766]
[1735637878687,2.94309,3397.8,3397.5,0.05612766]
[1735637878888,2.94324,3397.7,3397.5,0.05612766]
[1735637879064,2.94324,3397.7,3397.1,0.7945]
[1735637879385,8.79784497,3398.1,3397.6,0.05635315]
[1735637879386,2.94302,3397.9,3397.6,0.05635315]
[1735637879687,6.60788497,3398.1,3397.7,0.05636067]
[1735637879897,6.69576,3398.1,3397.1,0.7945]
[1735637880187,6.69576,3398.1,3397.2,0.373824]
[1735637880350,6.69576,3398.1,3397.3,0.05636067]
[1735637880761,2.9431,3397.8,3397.3,0.05636067]
[1735637881078,2.9431,3397.8,3397.1,0.7945]
[1735637881276,2.9431,3397.8,3397.4,0.05645087]
[1735637881462,2.9431,3397.8,3397.1,0.7945]
[1735637881463,2.94294,3398.0,3397.1,0.7945]
[1735637881669,2.94294,3398.0,3397.5,0.05645087]
[1735637881864,2.94294,3398.0,3397.1,0.7945]
[1735637881865,2.94294,3398.0,3397.1,3.73815]
[1735637882179,2.94294,3398.0,3397.2,0.373815]
[1735637882402,2.94294,3398.0,3397.3,0.05645839]
[1735637883277,0.8192,3398.3,3397.3,0.05645839]
[1735637883477,2.94294,3398.0,3397.3,0.05645839]
[1735637884392,0.8192,3398.3,3397.3,0.05645839]
[1735637884563,0.8192,3398.3,3397.4,0.7984]
[1735637884765,2.94273,3398.2,3397.5,0.05644335]
[1735637884971,2.94289,3398.1,3397.5,0.47366619]
[1735637885211,2.94289,3398.1,3397.5,0.05644335]
[1735637885583,0.35527562,3398.2,3397.4,0.7984]
[1735637885882,5.85498497,3398.4,3397.4,0.7984]
[1735637885883,3.0,3398.4,3397.5,2.99972825]
[1735637886697,2.9426,3398.4,3397.5,2.99972825]
[1735637887010,3.8192,3398.6,3397.6,0.7984]
[1735637887011,6.76163,3398.6,3397.6,0.7984]
[1735637887210,0.35527562,3398.8,3397.6,0.7984]
[1735637887211,2.94225,3398.8,3397.6,0.7984]
[1735637887370,2.94225,3398.8,3397.5,8.82]
[1735637887371,2.94225,3398.8,3397.8,2.943]
[1735637887705,2.94225,3398.8,3397.9,0.7984]
[1735637887881,2.94225,3398.8,3397.9,0.85514395]
[1735637888296,5.85498497,3399.1,3397.9,0.85514395]
[1735637888297,2.94208,3399.0,3398.0,3.74129]
[1735637888478,2.94208,3399.0,3398.1,3.3226234]
[1735637888687,6.67418497,3399.1,3398.1,3.37926963]
[1735637889005,3.0,3399.0,3398.1,3.37926963]
[1735637889183,5.94212,3399.0,3398.1,0.43644963]
[1735637889379,0.35527562,3398.9,3398.1,0.43644963]
[1735637889706,2.94227,3398.8,3398.1,0.05664623]
[1735637890972,2.94234,3398.7,3398.1,0.05664623]
[1735637891827,0.71158991,3398.9,3398.1,0.05664623]
[1735637892034,3.0,3398.8,3398.1,0.05664623]
[1735637892332,5.94222,3398.8,3398.1,0.05664623]
[1735637892531,2.94232,3398.7,3398.1,0.05664623]
[1735637892828,3.0,3399.0,3398.1,0.05664623]
[1735637893027,3.0,3398.8,3398.1,0.43645485]
[1735637894711,2.94223,3398.8,3398.1,0.43645485]
[1735637895214,3.0,3399.0,3398.1,0.05664623]
[1735637895416,3.0,3398.8,3398.1,0.05664623]
[1735637895616,2.94229,3398.8,3398.1,0.05664623]
[1735637898328,2.94244,3398.6,3398.1,0.05664623]
[1735637898663,2.94244,3398.6,3397.7,0.7919]
[1735637898952,2.94244,3398.6,3398.2,0.05570682]
[1735637899144,2.94244,3398.6,3397.7,0.7919]
[1735637899344,2.94244,3398.6,3398.3,0.05570682]
[1735637899524,2.94244,3398.6,3397.7,0.7919]
[1735637899729,2.94254,3398.5,3397.7,0.7919]
[1735637899952,5.94234,3398.7,3397.8,0.05570682]
[1735637900340,2.94242,3398.6,3397.8,0.05570682]
[1735637900542,2.94225,3398.8,3397.9,0.7919]
[1735637900862,2.94225,3398.8,3398.0,0.84767445]
[1735637901389,0.35527562,3399.3,3398.2,0.7919]
[1735637901537,2.94197,3399.1,3398.2,3.73462]
[1735637901737,2.94197,3399.1,3398.3,0.37903945]
[1735637901978,2.94197,3399.1,3398.3,0.4348139]
[1735637903351,2.94197,3399.1,3398.4,0.7919]
[1735637903880,2.94197,3399.1,3398.5,0.05577445]
[1735637905139,2.94206,3399.0,3398.5,0.05577445]
[1735637908081,2.94223,3398.8,3398.5,0.05577445]
[1735637908253,3.7752,3399.0,3398.5,0.05577445]
[1735637908459,2.94238,3398.6,3398.5,0.05577445]
[1735637908656,2.94238,3398.6,3398.1,0.7919]
[1735637908896,2.94251,3398.5,3398.1,0.7919]
[1735637909110,2.94256,3398.4,3398.2,0.05552649]
[1735637909311,2.94264,3398.3,3398.2,0.05552649]
[1735637909511,2.94264,3398.3,3397.8,0.7919]
[1735637909699,2.94264,3398.3,3398.2,0.05552649]
[1735637910019,2.9428,3398.2,3397.8,0.7919]
[1735637910788,2.9428,3398.2,3397.9,0.05552649]
[1735637911015,0.7752,3398.4,3397.9,0.05552649]
[1735637911215,2.94265,3398.3,3397.9,0.05552649]
[1735637911414,2.94283,3398.1,3397.9,0.05552649]
[1735637911592,2.94283,3398.1,3397.1,0.7703]
[1735637911926,2.94283,3398.1,3397.3,0.7703]
[1735637912222,2.94272,3398.3,3397.3,0.7703]
[1735637912601,2.94272,3398.3,3397.4,0.05552649]
[1735637912998,2.94272,3398.3,3397.5,0.7703]
[1735637913633,2.94282,3398.1,3397.6,0.05552649]
[1735637914427,2.94269,3398.3,3397.6,0.05552649]
[1735637914625,3.63018497,3398.4,3397.6,0.05552649]
[1735637914626,0.7752,3398.4,3397.6,0.05552649]
[1735637914807,3.0,3398.4,3397.7,0.7703]
[1735637915014,2.94266,3398.3,3397.7,0.7703]
[1735637915326,2.94266,3398.3,3397.8,0.05552649]
[1735637915622,2.94266,3398.3,3397.9,0.05552649]
[1735637915824,2.94249,3398.5,3397.7,0.7703]
[1735637916125,3.0,3398.8,3397.9,0.7703]
[1735637916350,2.94239,3398.6,3397.9,0.7703]
[1735637916559,2.94239,3398.6,3398.0,0.05581954]
[1735637916930,2.94239,3398.6,3397.9,0.7703]
[1735637917142,2.94239,3398.6,3398.1,0.05581954]
[1735637917456,2.94239,3398.6,3398.2,0.05581954]
[1735637917653,2.94239,3398.6,3397.9,0.7703]
[1735637917845,2.94239,3398.6,3398.3,0.05581954]
[1735637918047,2.94239,3398.6,3397.9,0.7703]
[1735637918353,3.0,3398.8,3397.9,0.7703]
[1735637918354,2.9425,3398.5,3397.9,0.7703]
[1735637918555,2.9425,3398.5,3398.0,0.05581954]
[1735637921356,2.94233,3398.7,3398.0,0.05581954]
[1735637921562,3.0,3398.6,3398.1,0.7703]
[1735637921883,3.0,3398.6,3398.2,0.05608255]
[1735637922842,5.94245,3398.6,3398.2,0.05608255]
[1735637925214,3.0,3398.6,3398.2,0.05608255]
[1735637925865,2.94224,3398.8,3398.3,0.7589]
[1735637926052,2.94213,3398.9,3398.3,0.81489237]
[1735637926705,3.0,3399.2,3398.4,0.7589]
[1735637927008,3.0,3399.2,3398.5,0.37574624]
[1735637927317,3.0,3399.2,3398.6,0.7589]
[1735637927489,3.0,3399.2,3398.6,0.81478717]
[1735637927643,5.94188,3399.2,3398.6,0.81478717]
[1735637928287,3.08982664,3399.5,3398.6,0.81478717]
[1735637928448,3.08982664,3399.6,3398.8,0.8312]
[1735637928653,6.03135664,3399.6,3398.9,0.43857596]
[1735637928888,6.03135664,3399.6,3399.0,0.8312]
[1735637929308,6.03135664,3399.6,3399.1,0.05563924]
[1735637929714,2.94153,3399.6,3399.0,0.8312]
[1735637929989,2.94134,3399.9,3399.2,0.05563924]
[1735637930164,2.94134,3399.9,3399.3,0.8312]
[1735637930366,2.94134,3399.9,3399.3,0.88646368]
[1735637930566,2.94134,3399.9,3399.3,0.8312]
[1735637930784,2.94134,3399.9,3399.4,0.05526368]
[1735637931094,0.35631429,3400.2,3399.2,0.8312]
[1735637931095,3.29738429,3400.2,3399.2,0.8312]
[1735637931262,2.94107,3400.2,3399.5,0.05526368]
[1735637931466,2.94107,3400.2,3399.6,0.8312]
[1735637931661,3.0,3400.1,3399.6,0.8312]
[1735637932070,2.94118,3400.0,3399.7,0.05526368]
[1735637932491,2.94118,3400.0,3399.6,0.8312]
[1735637932792,2.94118,3400.0,3399.8,0.05219988]
[1735637932995,2.94118,3400.0,3399.7,0.05221098]
[1735637933154,2.94118,3400.0,3399.6,0.8312]
[1735637933354,2.94118,3400.0,3399.8,0.05221098]
[1735637933691,2.94118,3400.0,3399.6,0.8312]
[1735637934071,2.94118,3400.0,3399.7,0.05221098]
[1735637936695,5.94102,3400.2,3399.7,0.05221098]
[1735637937066,2.94111,3400.1,3399.7,0.05221098]
[1735637937276,2.94122,3400.0,3399.7,0.05221098]
[1735637937684,2.94132,3399.9,3399.7,0.05221098]
[1735637938959,2.94134,3399.8,3399.6,0.8312]
[1735637939159,2.9412,3400.0,3399.6,0.8312]
[1735637939374,2.9412,3400.0,3399.7,0.05221098]
[1735637939763,2.9412,3400.0,3399.6,0.8312]
[1735637940099,2.94134,3399.9,3399.7,0.05221098]
[1735637940298,5.85498497,3400.2,3399.7,0.05221098]
[1735637940502,2.85498497,3400.5,3399.6,0.8312]
[1735637940660,2.85498497,3400.5,3399.0,0.29421]
[1735637940661,3.08982664,3400.8,3399.8,0.8262]
[1735637940860,3.08982664,3400.8,3400.0,0.8262]
[1735637941059,6.03032664,3400.8,3400.1,0.48919659]
[1735637941294,9.92380926,3400.7,3400.1,0.05222599]
[1735637941506,2.9408,3400.5,3400.0,0.8262]
[1735637942669,2.9408,3400.5,3400.1,0.05184336]
[1735637943595,3.62688497,3400.7,3400.1,0.05184336]
[1735637943798,2.94085,3400.4,3400.1,0.05184336]
[1735637944819,2.941,3400.2,3400.1,0.05184336]
[1735637945000,2.9407,3400.6,3399.2,11.76182]
[1735637945001,2.94108,3400.1,3399.8,0.8262]
[1735637945409,2.94108,3400.1,3399.9,0.05125823]
[1735637945603,2.94095,3400.3,3399.9,0.05125823]
[1735637945809,2.94095,3400.3,3399.8,0.8262]
[1735637946006,5.94077,3400.5,3399.8,0.8262]
[1735637946321,2.94083,3400.4,3399.9,0.05125823]
[1735637946527,2.94107,3400.2,3399.9,0.05125823]
[1735637946831,2.94109,3400.1,3399.8,0.8262]
[1735637947130,2.94109,3400.1,3399.9,0.05125823]
[1735637947332,2.94117,3400.0,3399.9,0.05125823]
[1735637947643,2.94117,3400.0,3399.6,0.8262]
[1735637947929,2.94117,3400.0,3399.7,0.05125823]
[1735637948536,5.79581497,3400.4,3399.7,0.05125823]
[1735637948709,2.94109,3400.1,3399.7,0.05125823]
[1735637949320,2.9409,3400.4,3399.7,0.05125823]
[1735637950545,3.0,3400.6,3399.7,0.05125823]
[1735637950752,5.94069,3400.6,3399.7,0.05125823]
[1735637950933,2.94113,3400.1,3399.7,0.05125823]
[1735637951304,2.85498497,3400.4,3399.7,0.05125823]